Cogmind - Beta 11.1 @@@ ROGUE MODE // 2022.09.19 @ 12:05:52 Player: Zirov Result: Destroyed by D-53 Grenadier with Mini Grenade Launcher Performance ------------- Evolutions (0) 0 Regions Visited (2) 400 Robots Destroyed (23) 115 Value Destroyed (567) 567 Prototype IDs (0) 0 Alien Tech Used (0) 0 Bonus (0) 0 TOTAL SCORE: 1082 Bonus ------- None Cogmind --------- Core Integrity 0/250 Matter 283/300 Energy 250/250 System Corruption 11% Temperature Cool (0) Movement Walking (190) Ox1 Location -10/Mines Parts ------- > --- POWER (1) -------- Ion Engine > --- PROPULSION (2) --- Aluminum Leg Aluminum Leg > --- UTILITY (2) ------ Improved Heat Sink Medium Storage Unit > --- WEAPON (2) ------- Medium Laser Makeshift Axe > --- INVENTORY (10) --- Aluminum Leg Aluminum Leg Aluminum Leg Heat Sink Improved Heat Sink Large Storage Unit Hacking Suite EM Pulse Gun Particle Gun Mining Claw Peak State ------------ > --- POWER ------------ Ion Engine > --- PROPULSION ------- Aluminum Leg Aluminum Leg > --- UTILITY ---------- Improved Heat Sink Medium Storage Unit > --- WEAPON ----------- Medium Laser Makeshift Axe > --- INVENTORY -------- Aluminum Leg Aluminum Leg Aluminum Leg Heat Sink Improved Heat Sink Large Storage Unit Hacking Suite EM Pulse Gun Particle Gun Mining Claw [Rating: 13] Favorites ----------- Power Ion Engine Engine Ion Engine Propulsion Aluminum Leg Leg Aluminum Leg Utility Medium Storage Unit Device Improved Heat Sink Storage Medium Storage Unit Processor Visual Processing Unit Weapon Small Laser Energy Gun Small Laser Ballistic Gun Light Assault Rifle Launcher Grenade Launcher Slashing Weapon Mining Claw Build | -11 -10 -10 ------- Run | Scr Mat Min Slots Evolved . | . . . Power . | . . . Propulsion . | . . . Utility . | . . . Weapon . | . . . Parts Attached 33 | 6 15 12 Power 6 | 1 4 1 Engine 6 | 1 4 1 Core . | . . . Reactor . | . . . Propulsion 10 | 2 5 3 Treads . | . . . Leg 10 | 2 5 3 Wheel . | . . . Hover . | . . . Flight . | . . . Utility 8 | 1 4 3 Device 5 | . 2 3 Storage 2 | 1 1 . Processor 1 | . 1 . Hackware . | . . . Protection . | . . . Artifact . | . . . Weapon 9 | 2 2 5 Energy Gun 5 | 2 1 2 Energy Cannon . | . . . Ballistic Gun 1 | . 1 . Ballistic Cannon . | . . . Launcher 1 | . . 1 Special Weapon . | . . . Impact Weapon . | . . . Slashing Weapon 2 | . . 2 Piercing Weapon . | . . . Special Melee Weapon . | . . . Unidentified Prototypes . | . . . Corrupted Parts 1 | . 1 . System Corruption 1 | . 1 . Parts Lost 7 | . 2 5 Power 2 | . 1 1 Propulsion 3 | . 1 2 Utility 1 | . . 1 Weapon 1 | . . 1 Highest Loss Streak 4 | . 1 4 To Critical Strikes . | . . . Average Slot Usage (%) 97 | . 99 91 Engine 12 | . 13 8 Leg 27 | . 27 27 Device 10 | . 10 13 Storage 14 | . 14 14 Processor 2 | . 3 . Energy Gun 21 | . 23 11 Ballistic Gun 3 | . 4 . Slashing Weapon 2 | . . 12 Naked Turns . | . . . Heaviest Build 21 | 13 19 21 Greatest Support 20 | 20 20 20 Greatest Overweight (x) 1 | . 1 1 Average Overweight (x) . | . . . Largest Inventory Capacity 10 | 8 10 10 Average Capacity 9 | 7 9 10 Most Carried 10 | . 10 10 Average Carried 5 | . 5 7 Final Capacity 10 | 8 10 10 Final Carried 10 | . 10 10 Class Distribution -------------------- 65% | Mutant 34% | Scavenger-Mutant Dominant Class ---------------- Mutant | -10/Materials Mutant | -10/Mines Resources | -11 -10 -10 ----------- Run | Scr Mat Min Matter Collected 533 | 171 257 105 Remotely . | . . . Salvage Created 940 | . 739 201 Parts 46 | . 41 5 Haulers Intercepted 2 | . 2 . Recyclers Shooed 2 | . 2 . Parts Field Recycled . | . . . Retrieved Matter . | . . . Parts Self-Destructed . | . . . Prevented . | . . . Kills | -11 -10 -10 ------- Run | Scr Mat Min Combat Hostiles Destroyed 15 | . 13 2 Melee 2 | . . 2 Guns 13 | . 13 . Classes Destroyed 6 | . 6 . Hauler 2 | . 2 . Recycler 3 | . 2 1 Operator 1 | . 1 . Watcher 2 | . 2 . Swarmer 3 | . 3 . Grunt 12 | . 10 2 Best Kill Streak 3 | . 3 1 Combat Bots Only 3 | . 3 1 Max Kills in Single Turn 1 | . 1 1 Gunslinging . | . . . Exploded . | . . . Melee 1 | . . 1 Uniques/NPCs Destroyed . | . . . Combat | -11 -10 -10 -------- Run | Scr Mat Min Damage Taken 1200 | . 554 646 Core 258 | . 115 143 Absorbed by Shields . | . . . Core Remaining (%) 100 | 100 . . Volleys Fired 74 | . 74 . Largest 2 | . 2 . Hottest 90 | . 90 . Shots Fired 146 | . 146 . Gun 146 | . 146 . Cannon . | . . . Launcher . | . . . Special . | . . . Kinetic 22 | . 22 . Thermal 89 | . 89 . Explosive . | . . . Electromagnetic 35 | . 35 . Robot Hit Streak 17 | . 17 . Robot Miss Streak 3 | . 3 . Penetration Max . | . . . Secondary Targets 1 | . 1 . Max Gunslinging Chain 1 | . 1 . Shots Hit Robots 108 | . 97 11 Core Hits 43 | . 39 4 Critical Kills . | . . . Critical Parts Destroyed . | . . . Critical Strikes 1 | . 1 . Burn 1 | . 1 . Melee Attacks 22 | . . 22 Impact . | . . . Slashing 22 | . . 22 Piercing . | . . . Sneak Attacks 4 | . . 4 Combat Hostiles . | . . . Follow-up Attacks . | . . . Damage Inflicted 1483 | . 1154 329 Guns 1126 | . 1126 . Cannons . | . . . Explosions 24 | . 24 . Melee 329 | . . 329 Ramming 4 | . 4 . Kinetic 162 | . 162 . Thermal 748 | . 748 . Explosive . | . . . Electromagnetic 240 | . 240 . Impact . | . . . Slashing 329 | . . 329 Piercing . | . . . Highest Corruption 11 | . 1 11 Average Corruption 4 | . 1 8 Corruption Purged . | . . . Corruption Blocked . | . . . Effects 12 | . 2 10 Message Errors 4 | . 1 3 Matter Fused 4 | . 1 3 Energy Discharges 1 | . . 1 Data Loss (minor) 2 | . . 2 Alerts 1 | . . 1 Overload Shots . | . . . Overflow Damage 35 | . . 35 Projectiles . | . . . Explosions . | . . . Melee 35 | . . 35 Knockbacks . | . . . Impact . | . . . Kinetic . | . . . Secondary . | . . . Self-Inflicted Damage 4 | . 4 . Shots 1 | . 1 . Rammed . | . . . Targets Rammed 1 | . 1 . Kicked 1 | . 1 . Crushed . | . . . Highest Temperature 424 | . 424 . Average Temperature 111 | . 111 . Received Heat Transfer 378 | . 294 84 Effects 2 | . 2 . Shutdowns 1 | . 1 . Energy Bleed 1 | . 1 . Siege Activations . | . . . Robots Corrupted . | . . . Combat Hostiles . | . . . Parts Fried 1 | . 1 . Impact Corruptions . | . . . Robots Melted . | . . . Combat Hostiles . | . . . Parts Melted 2 | . 2 . Heat Transferred 1843 | . 1843 . Parts Sabotaged . | . . . Parts Stolen . | . . . Parts Stripped . | . . . Power Chain Reactions 1 | . 1 . Missiles Intercepted . | . . . Alert | -11 -10 -10 ------- Run | Scr Mat Min Peak Influence 251 | . 251 65 Initial 3 | . . 3 Average 87 | . 110 23 Maximum Alert Level 1 | . 1 . Low Security (%) 80 | 100 73 100 Level 1 19 | . 26 . Level 2 . | . . . Level 3 . | . . . Level 4 . | . . . Level 5 . | . . . High Security . | . . . Max Security . | . . . Squads Dispatched 5 | . 5 . Investigation 2 | . 2 . Extermination . | . . . Reinforcement 3 | . 3 . Assault . | . . . Garrison . | . . . Intercept . | . . . Searches Triggered . | . . . Construction Impeded . | . . . Haulers Reinforced . | . . . Active Scanning Responses . | . . . Cargo Convoy Interrupts . | . . . Stealth | -11 -10 -10 --------- Run | Scr Mat Min Distress Signals 2 | . 2 . Communications Jammed . | . . . Distress Signals . | . . . Times Spotted 30 | . 26 4 Peak Tracking Total 4 | . 4 2 Tactical Retreats 1 | . . 1 Traps | -11 -10 -10 ------- Run | Scr Mat Min Traps Triggered 3 | . 3 . Indirectly . | . . . Trap Hack Attempts . | . . . Triggered . | . . . Disarmed . | . . . Reprogrammed . | . . . Reused . | . . . Traps Extracted . | . . . Installed . | . . . Triggered . | . . . Machines | -11 -10 -10 ---------- Run | Scr Mat Min Machines Disabled 2 | . 2 . Max in Single Turn 1 | . 1 . Machines Sabotaged . | . . . Garrisons Compromised . | . . . Overloaded Fab Kills . | . . . Hacking | -11 -10 -10 --------- Run | Scr Mat Min Machines Accessed 7 | . 7 . Terminals 5 | . 5 . Fabricators . | . . . Repair Stations . | . . . Recycling Units 2 | . 2 . Scanalyzers . | . . . Garrison Access . | . . . Total Hacks 19 | . 19 . Successful 9 | . 9 . Failed 10 | . 10 . Catastrophic 1 | . 1 . Database Lockouts . | . . . Manual 10 | . 10 . Terminals 15 | . 15 . Fabricators . | . . . Repair Stations . | . . . Recycling Units 4 | . 4 . Scanalyzers . | . . . Garrison Access . | . . . Terminal Hacks 6 | . 6 . Part Schematic 1 | . 1 . Robot Analysis 1 | . 1 . Level Access Points 1 | . 1 . Branch Access Points 1 | . 1 . Unreport Threat 2 | . 2 . Fabricator Hacks . | . . . Repair Station Hacks . | . . . Recycling Unit Hacks 3 | . 3 . Report Inventory 2 | . 2 . Retrieve Components 1 | . 1 . Scanalyzer . | . . . Garrison Access Hacks . | . . . Unauthorized Hacks . | . . . Terminals . | . . . Fabricators . | . . . Repair Stations . | . . . Recycling Units . | . . . Scanalyzers . | . . . Garrison Access . | . . . Data Cores Recovered . | . . . Used . | . . . Hacking Detections 5 | . 5 . Full Trace Events . | . . . Feedback Events . | . . . Feedback Blocked . | . . . Robot Schematics Acquired . | . . . Robots Built . | . . . Authchips . | . . . Time . | . . . Total Robot Build Rating . | . . . Part Schematics Acquired 1 | . 1 . Parts Built . | . . . Authchips . | . . . Time . | . . . Total Part Build Rating . | . . . Parts Repaired . | . . . Time . | . . . Parts Recycled . | . . . Recycled Matter . | . . . Retrieved Matter . | . . . Retrieved Components 2 | . 2 . Parts Scanalyzed . | . . . Part Schematics Acquired . | . . . Parts Damaged . | . . . Bothacking | -11 -10 -10 ------------ Run | Scr Mat Min Used RIF Installer . | . . . Robots Hacked . | . . . Non-combat . | . . . Combat . | . . . Robot Hacks Applied . | . . . Relay Couplers Released . | . . . Fabnet Peak Effective % . | . . . Robots Rewired . | . . . Allies Hacked . | . . . Hacks Repelled . | . . . Allies | -11 -10 -10 -------- Run | Scr Mat Min Total Allies . | . . . Largest Group . | . . . Highest-Rated Group . | . . . Highest-Rated Ally . | . . . Total Orders . | . . . Ally Attacks . | . . . Total Damage . | . . . Kills . | . . . Allies Corrupted . | . . . Allies Melted . | . . . Intel | -11 -10 -10 ------- Run | Scr Mat Min Robot Analysis Total 1 | . 1 . Derelict Logs Recovered . | . . . Drone Launches . | . . . Drone Recoveries . | . . . Exploration | -11 -10 -10 ------------- Run | Scr Mat Min Turns Passed 1481 | 71 1109 301 Spaces Moved 843 | 54 646 143 Core 3 | 3 . . Treads . | . . . Legs 840 | 51 646 143 Wheels . | . . . Hover . | . . . Flight . | . . . Fastest Speed 50 | 50 120 120 Average Speed 124 | 116 120 146 Slowest Speed 190 | 120 190 190 Overloaded Moves . | . . . Propulsion Burnouts . | . . . Robots Hopped . | . . . Cave-ins Triggered 2 | . . 2 Exploration Rate (%) 45 | 4 99 32 Regions Visited 2 Branch Regions 1 Pre-discovered Areas . | . . . Known Exits Taken 1 | . 1 . Unknown Exits Taken 1 | 1 . . Scrap Searched 3 | . . 3 Spaces Dug 7 | . . 7 Terrain Destroyed 8 | . 1 7 Melee 7 | . . 7 Projectile . | . . . AOE 1 | . 1 . Terrain Rammed . | . . . Walls Destroyed . | . . . Machines Disabled . | . . . Actions | -11 -10 -10 --------- Run | Scr Mat Min Total 1086 | 59 838 189 Wait 89 | . 79 10 Move 841 | 53 645 143 Hop . | . . . Pick Up 16 | . 15 1 Fast Attach 11 | 6 4 1 Attach 8 | . 3 5 Detach 1 | . 1 . Swap 14 | . 8 6 Drop 9 | . 8 1 Fire 74 | . 74 . Melee 22 | . . 22 Ram . | . . . Kick 1 | . 1 . Crush . | . . . Escape Stasis . | . . . Rewire . | . . . Trap . | . . . Miscellaneous . | . . . Route ------- -11/Scrapyard -10/Materials (discovered 5 exits: *Mat x3 / *Min x2) -10/Mines (discovered 1 exit: *Mat) History --------- Turn | Location | Event 38 | -11/Scrapyard | Discovered new exit (range 15) 72 | -11/Scrapyard | Entered Materials 97 | -10/Materials | Discovered new exit (range 16) 301 | -10/Materials | Identified exit to Mines 317 | -10/Materials | Build established: Mutant 322 | -10/Materials | Discovered new exit (range 3) 412 | -10/Materials | Identified exit to Materials 1181 | -10/Materials | Entered Mines 1182 | -10/Mines | Assembled infested the area 1187 | -10/Mines | Assisted by a Guerilla fighting off Assembled 1253 | -10/Mines | Crushed by falling debris 1253 | -10/Mines | Core integrity fell below 50% 1253 | -10/Mines | System corruption reached 10% 1257 | -10/Mines | Crushed by falling debris 1284 | -10/Mines | Lost 4 parts (1p1n1u1w) 1351 | -10/Mines | Discovered exit to Materials (range 4) 1384 | -10/Mines | Core integrity fell below 20% 1436 | -10/Mines | A weapon hastily lodged in a ceiling crevice suddenly fell to the ground 1482 | -10/Mines | Destroyed by D-53 Grenadier with Mini Grenade Launcher Last Messages --------------- 01351_ Aluminum Leg destroyed. 01358_ G-34 Mercenary Aluminum Leg ripped off. 01364_ System corrupted: Matter fused (-6). 01364_ G-34 Mercenary destroyed. 01370_ Acquired 16 matter. 01373_ Acquired Ion Engine. 01374_ Acquired 10 matter. 01385_ System corrupted: IFF burst signal emitted. 01391_ G-47 Trooper destroyed. 01402_ Acquired 20 matter. 01404_ Acquired Particle Gun. 01414_ System corrupted: Component data lost. 01432_ 01450_ System corrupted: Matter fused (-7). 01450_ T-07 Excavator is excavating. 01465_ LVE|SCBGHE|